[Event "FIDE Women World Rapid 2024"]
[Site "New York"]
[Date "2024.12.27"]
[Round "7.18"]
[White "Mamedjarova, Turkan"]
[Black "Pourkashiyan, Atousa"]
[Result "1-0"]
[ECO "E00"]
[WhiteElo "2197"]
[BlackElo "2255"]
[Annotator "ChessBase"]
[PlyCount "83"]
[EventDate "2024.12.14"]
[EventType "swiss"]
[EventCountry "USA"]
[SourceTitle "playchess.com"]
[Source "ChessBase"]
[SourceQuality "1"]
[TimeControl "900+10"]

1. d4 {[%emt 0:00:04]} Nf6 {[%emt 0:00:04]} 2. c4 {[%emt 0:00:04]} e6 {[%emt 0:00:03]} 3. a3 {[%emt 0:00:01]} d5 {[%emt 0:00:08]} 4. cxd5 {[%emt 0:00:07]} exd5 {[%emt 0:00:04]} 5. Nc3 {[%emt 0:00:05]} c6 {[%emt 0:00:08]} 6. Bg5 {[%emt 0:00:15]} Be7 {[%emt 0:00:19]} 7. e3 {[%emt 0:00:03]} Bf5 {[%emt 0:00:10]} 8. Bd3 {[%emt 0:00:12]} Bxd3 {[%emt 0:00:12]} 9. Qxd3 {[%emt 0:00:02]} Nbd7 {[%emt 0:00:12]} 10. Nge2 {[%emt 0:00:10]} O-O {[%emt 0:00:31]} 11. O-O {[%emt 0:00:11]} Ne4 {[%emt 0:00:31]} 12. Bf4 {[%emt 0:00:32]} f5 {[%emt 0:00:29]} 13. f3 {[%emt 0:00:13]} Nd6 {[%emt 0:00:14]} 14. Ng3 {[%emt 0:00:38]} g6 {[%emt 0:01:30]} 15. e4 {[%emt 0:00:11]} fxe4 {[%emt 0:03:03]} 16. fxe4 {[%emt 0:00:02]} dxe4 {[%emt 0:00:18]} 17. Ncxe4 {[%emt 0:00:10]} Nxe4 {[%emt 0:01:05]} 18. Qc4+ {[%emt 0:01:00]} Kg7 {[%emt 0:02:58]} 19. Nxe4 {[%emt 0:00:05]} Bf6 {[%emt 0:01:22]} 20. Bd6 {[%emt 0:00:29]} Be7 {[%emt 0:00:46]} 21. Rxf8 {[%emt 0:02:10]} Bxf8 {[%emt 0:01:11]} 22. Rf1 {[%emt 0:01:46]} Bxd6 {[%emt 0:00:02]} 23. Rf7+ {[%emt 0:00:52]} Kh8 {[%emt 0:00:08]} 24. Nxd6 {[%emt 0:00:07]} Qg5 {[%emt 0:02:18]} 25. Qe6 {[%emt 0:00:35]} Nf8 {[%emt 0:00:28]} 26. Qe4 {[%emt 0:00:51]} Rd8 {[%emt 0:00:23]} 27. h4 {[%emt 0:00:45]} Qd5 {[%emt 0:00:22]} 28. Qe5+ {[%emt 0:01:50]} Qxe5 {[%emt 0:00:03]} 29. dxe5 {[%emt 0:00:00]} b5 {[%emt 0:00:35]} 30. Rxa7 {[%emt 0:00:21]} Rb8 {[%emt 0:00:18]} 31. Rc7 {[%emt 0:00:20]} Ne6 {[%emt 0:00:06]} 32. Rxc6 {[%emt 0:00:10]} Nd4 {[%emt 0:00:08]} 33. Rc7 {[%emt 0:00:08]} b4 {[%emt 0:00:12]} 34. a4 {[%emt 0:01:33]} b3 {[%emt 0:00:01]} 35. Ne4 {[%emt 0:00:27]} Ne6 {[%emt 0:00:14]} 36. Re7 {[%emt 0:00:07]} Nf8 {[%emt 0:00:07]} 37. e6 {[%emt 0:00:21]} Rb6 {[%emt 0:00:17]} 38. Re8 {[%emt 0:00:13]} Rxe6 {[%emt 0:00:14]} 39. Rxf8+ {[%emt 0:00:05]} Kg7 {[%emt 0:00:01]} 40. Rf4 {[%emt 0:00:01]} Rc6 {[%emt 0:00:05]} 41. Nc3 {[%emt 0:00:07]} Rd6 {[%emt 0:00:13]} 42. Rb4 {[%emt 0:00:05]} 1-0

[Event "FIDE Women World Rapid 2024"]
[Site "New York"]
[Date "2024.12.27"]
[Round "7.19"]
[White "Vaishali, Rameshbabu"]
[Black "Garcia Martin, Marta"]
[Result "1-0"]
[ECO "B06"]
[WhiteElo "2476"]
[BlackElo "2322"]
[Annotator "ChessBase"]
[PlyCount "99"]
[EventDate "2024.12.14"]
[EventType "swiss"]
[EventCountry "USA"]
[SourceTitle "playchess.com"]
[Source "ChessBase"]
[SourceQuality "1"]
[TimeControl "900+10"]

1. e4 {[%emt 0:00:03]} g6 {[%emt 0:00:02]} 2. d4 {[%emt 0:00:01]} Bg7 {[%emt 0:00:02]} 3. Nc3 {[%emt 0:00:02]} d6 {[%emt 0:00:01]} 4. Be3 {[%emt 0:00:06]} a6 {[%emt 0:00:01]} 5. Qd2 {[%emt 0:00:26]} b5 {[%emt 0:00:02]} 6. Bd3 {[%emt 0:00:03]} Bb7 {[%emt 0:00:38]} 7. Nf3 {[%emt 0:00:11]} Nd7 {[%emt 0:00:10]} 8. a4 {[%emt 0:00:36]} b4 {[%emt 0:00:09]} 9. Ne2 {[%emt 0:00:03]} c5 {[%emt 0:00:35]} 10. c3 {[%emt 0:00:04]} bxc3 {[%emt 0:00:25]} 11. bxc3 {[%emt 0:00:25]} Ngf6 {[%emt 0:02:05]} 12. Ng3 {[%emt 0:01:02]} O-O {[%emt 0:03:31]} 13. a5 {[%emt 0:02:24]} Qc7 {[%emt 0:04:17]} 14. h3 {[%emt 0:00:42]} e5 {[%emt 0:00:57]} 15. O-O {[%emt 0:01:25]} Rfe8 {[%emt 0:00:30]} 16. dxe5 {[%emt 0:03:24]} Nxe5 {[%emt 0:00:02]} 17. Nxe5 {[%emt 0:00:02]} Rxe5 {[%emt 0:00:37]} 18. Bf4 {[%emt 0:01:45]} Ree8 {[%emt 0:00:01]} 19. Rfe1 {[%emt 0:00:19]} Nd7 {[%emt 0:00:33]} 20. Bc4 {[%emt 0:01:00]} Ne5 {[%emt 0:00:09]} 21. Bxe5 {[%emt 0:01:05]} Bxe5 {[%emt 0:01:38]} 22. Nf1 {[%emt 0:01:19]} Bg7 {[%emt 0:00:36]} 23. Qd3 {[%emt 0:00:54]} Qe7 {[%emt 0:00:25]} 24. Nd2 {[%emt 0:00:30]} Qe5 {[%emt 0:00:17]} 25. Rab1 {[%emt 0:00:16]} Re7 {[%emt 0:00:48]} 26. Rxb7 {[%emt 0:01:09]} Rxb7 {[%emt 0:00:02]} 27. Bd5 {[%emt 0:00:01]} Rba7 {[%emt 0:00:52]} 28. Bxa8 {[%emt 0:00:18]} Rxa8 {[%emt 0:00:01]} 29. Rc1 {[%emt 0:00:06]} Qe6 {[%emt 0:00:21]} 30. Rb1 {[%emt 0:00:13]} Qe5 {[%emt 0:00:10]} 31. Rb3 {[%emt 0:00:09]} h5 {[%emt 0:00:11]} 32. Qd5 {[%emt 0:00:14]} Qxd5 {[%emt 0:00:05]} 33. exd5 {[%emt 0:00:02]} Kf8 {[%emt 0:00:13]} 34. Nc4 {[%emt 0:00:05]} Rd8 {[%emt 0:00:05]} 35. Kf1 {[%emt 0:00:15]} Ke7 {[%emt 0:00:15]} 36. Ke2 {[%emt 0:00:02]} Rd7 {[%emt 0:00:10]} 37. Kd3 {[%emt 0:00:06]} g5 {[%emt 0:00:11]} 38. g4 {[%emt 0:00:23]} hxg4 {[%emt 0:00:03]} 39. hxg4 {[%emt 0:00:01]} f5 {[%emt 0:00:08]} 40. gxf5 {[%emt 0:00:06]} Kf6 {[%emt 0:00:06]} 41. Rb6 {[%emt 0:00:13]} Kxf5 {[%emt 0:00:02]} 42. Rxd6 {[%emt 0:00:24]} Rxd6 {[%emt 0:00:27]} 43. Nxd6+ {[%emt 0:00:01]} Ke5 {[%emt 0:00:00]} 44. Ne8 {[%emt 0:00:10]} Bf8 {[%emt 0:00:11]} 45. Kc4 {[%emt 0:00:17]} g4 {[%emt 0:00:11]} 46. Nc7 {[%emt 0:00:06]} Kd6 {[%emt 0:00:19]} 47. Nxa6 {[%emt 0:00:07]} Bh6 {[%emt 0:00:12]} 48. Nxc5 {[%emt 0:00:04]} Kc7 {[%emt 0:00:09]} 49. Ne4 {[%emt 0:00:05]} Bf4 {[%emt 0:00:06]} 50. Kd4 {[%emt 0:00:04]} 1-0

[Event "FIDE Women World Rapid 2024"]
[Site "New York"]
[Date "2024.12.27"]
[Round "7.19"]
[White "Kaldarova, Ayaulym"]
[Black "Kulon, Klaudia"]
[Result "0-1"]
[ECO "A26"]
[WhiteElo "2144"]
[BlackElo "2391"]
[Annotator "ChessBase"]
[PlyCount "108"]
[EventDate "2024.12.14"]
[EventType "swiss"]
[EventCountry "USA"]
[SourceTitle "playchess.com"]
[Source "ChessBase"]
[SourceQuality "1"]
[TimeControl "900+10"]

1. Nf3 {[%emt 0:00:03]} Nf6 {[%emt 0:00:01]} 2. c4 {[%emt 0:00:01]} g6 {[%emt 0:00:01]} 3. Nc3 {[%emt 0:00:06]} Bg7 {[%emt 0:00:02]} 4. g3 {[%emt 0:00:02]} O-O {[%emt 0:00:02]} 5. Bg2 {[%emt 0:00:01]} d6 {[%emt 0:00:01]} 6. O-O {[%emt 0:00:03]} Nc6 {[%emt 0:00:02]} 7. d3 {[%emt 0:00:04]} e5 {[%emt 0:00:07]} 8. Rb1 {[%emt 0:00:01]} a5 {[%emt 0:00:11]} 9. b3 {[%emt 0:00:07]} Ne8 {[%emt 0:00:15]} 10. a3 {[%emt 0:00:21]} f5 {[%emt 0:00:03]} 11. Bg5 {[%emt 0:00:06]} Qd7 {[%emt 0:00:28]} 12. Qd2 {[%emt 0:00:31]} f4 {[%emt 0:00:26]} 13. gxf4 {[%emt 0:01:07]} h6 {[%emt 0:00:20]} 14. fxe5 {[%emt 0:02:54]} hxg5 {[%emt 0:00:09]} 15. Nxg5 {[%emt 0:00:02]} Nxe5 {[%emt 0:03:21]} 16. d4 {[%emt 0:01:26]} Ng4 {[%emt 0:00:21]} 17. Nce4 {[%emt 0:00:19]} c6 {[%emt 0:00:30]} 18. d5 {[%emt 0:00:33]} Qe7 {[%emt 0:00:33]} 19. Rbd1 {[%emt 0:00:42]} c5 {[%emt 0:00:03]} 20. Ne6 {[%emt 0:00:28]} Bxe6 {[%emt 0:00:16]} 21. dxe6 {[%emt 0:00:01]} Rb8 {[%emt 0:04:59]} 22. h3 {[%emt 0:00:45]} Ngf6 {[%emt 0:00:13]} 23. Qg5 {[%emt 0:00:08]} Qxe6 {[%emt 0:00:46]} 24. Qxg6 {[%emt 0:00:06]} Qf7 {[%emt 0:00:41]} 25. Qxf7+ {[%emt 0:02:25]} Kxf7 {[%emt 0:00:01]} 26. Nxd6+ {[%emt 0:00:06]} Nxd6 {[%emt 0:00:03]} 27. Rxd6 {[%emt 0:00:02]} b6 {[%emt 0:00:51]} 28. Rfd1 {[%emt 0:00:27]} Ke7 {[%emt 0:00:03]} 29. e4 {[%emt 0:01:09]} Rfd8 {[%emt 0:00:18]} 30. e5 {[%emt 0:00:02]} Nh5 {[%emt 0:00:19]} 31. Bc6 {[%emt 0:02:07]} Bxe5 {[%emt 0:00:16]} 32. Rd7+ {[%emt 0:00:24]} Rxd7 {[%emt 0:00:01]} 33. Rxd7+ {[%emt 0:00:02]} Kf6 {[%emt 0:00:02]} 34. Bd5 {[%emt 0:00:21]} Nf4 {[%emt 0:00:06]} 35. h4 {[%emt 0:00:38]} Nxd5 {[%emt 0:00:03]} 36. Rxd5 {[%emt 0:00:01]} Bd4 {[%emt 0:00:44]} 37. Kf1 {[%emt 0:00:05]} Ke6 {[%emt 0:00:06]} 38. b4 {[%emt 0:00:09]} axb4 {[%emt 0:00:08]} 39. axb4 {[%emt 0:00:02]} Rf8 {[%emt 0:00:02]} 40. bxc5 {[%emt 0:00:12]} bxc5 {[%emt 0:00:04]} 41. Ke1 {[%emt 0:00:14]} Bxf2+ {[%emt 0:00:05]} 42. Kd2 {[%emt 0:00:05]} Bd4 {[%emt 0:00:03]} 43. Rg5 {[%emt 0:01:16]} Rf4 {[%emt 0:00:12]} 44. h5 {[%emt 0:00:12]} Rf5 {[%emt 0:00:07]} 45. Rg6+ {[%emt 0:00:26]} Kf7 {[%emt 0:00:01]} 46. Kd3 {[%emt 0:00:08]} Rxh5 {[%emt 0:00:03]} 47. Rg3 {[%emt 0:00:01]} Kf6 {[%emt 0:00:05]} 48. Rf3+ {[%emt 0:00:12]} Ke5 {[%emt 0:00:02]} 49. Rf8 {[%emt 0:00:45]} Rh3+ {[%emt 0:00:02]} 50. Kd2 {[%emt 0:00:02]} Ke4 {[%emt 0:00:04]} 51. Re8+ {[%emt 0:00:05]} Be5 {[%emt 0:00:01]} 52. Re7 {[%emt 0:00:12]} Rh2+ {[%emt 0:00:03]} 53. Kc1 {[%emt 0:00:06]} Kd4 {[%emt 0:00:07]} 54. Kb1 {[%emt 0:00:11]} Re2 {[%emt 0:00:05]} 0-1

[Event "FIDE Women World Rapid 2024"]
[Site "New York"]
[Date "2024.12.27"]
[Round "7.20"]
[White "Sukandar, Irine Kharisma"]
[Black "Mammadova, Gulnar"]
[Result "1-0"]
[ECO "D05"]
[WhiteElo "2330"]
[BlackElo "2333"]
[Annotator "ChessBase"]
[PlyCount "53"]
[EventDate "2024.12.14"]
[EventType "swiss"]
[EventCountry "USA"]
[SourceTitle "playchess.com"]
[Source "ChessBase"]
[SourceQuality "1"]
[TimeControl "900+10"]

1. d4 {[%emt 0:00:03]} Nf6 {[%emt 0:00:01]} 2. Nf3 {[%emt 0:00:06]} d5 {[%emt 0:00:03]} 3. b3 {[%emt 0:00:32]} e6 {[%emt 0:00:29]} 4. e3 {[%emt 0:00:05]} Be7 {[%emt 0:00:09]} 5. Bd3 {[%emt 0:00:04]} a5 {[%emt 0:00:19]} 6. a4 {[%emt 0:00:20]} O-O {[%emt 0:00:28]} 7. O-O {[%emt 0:00:07]} b6 {[%emt 0:00:35]} 8. Bb2 {[%emt 0:00:06]} c5 {[%emt 0:00:10]} 9. Ne5 {[%emt 0:00:31]} Qc7 {[%emt 0:00:41]} 10. Nc3 {[%emt 0:00:12]} Ba6 {[%emt 0:00:27]} 11. Nb5 {[%emt 0:00:16]} Qb7 {[%emt 0:00:34]} 12. c4 {[%emt 0:01:20]} Nc6 {[%emt 0:00:18]} 13. Rc1 {[%emt 0:01:06]} Nb4 {[%emt 0:00:15]} 14. Bb1 {[%emt 0:00:05]} Rad8 {[%emt 0:00:32]} 15. cxd5 {[%emt 0:00:51]} Rxd5 {[%emt 0:00:59]} 16. Qf3 {[%emt 0:00:36]} Rdd8 {[%emt 0:00:37]} 17. Qh3 {[%emt 0:00:57]} g6 {[%emt 0:00:58]} 18. Qh6 {[%emt 0:00:42]} Ne4 {[%emt 0:00:20]} 19. dxc5 {[%emt 0:00:29]} Bg5 {[%emt 0:00:42]} 20. Ng4 {[%emt 0:03:19]} f6 {[%emt 0:00:59]} 21. Bxe4 {[%emt 0:00:19]} Qxe4 {[%emt 0:00:17]} 22. Qxg5 {[%emt 0:00:05]} Nd5 {[%emt 0:02:58]} 23. Bxf6 {[%emt 0:01:10]} h5 {[%emt 0:02:23]} 24. Nh6+ {[%emt 0:00:39]} Kh7 {[%emt 0:00:01]} 25. Bxd8 {[%emt 0:00:05]} bxc5 {[%emt 0:00:38]} 26. Nd6 {[%emt 0:02:03]} Qb4 {[%emt 0:00:11]} 27. Nhf7 {[%emt 0:00:08]} 1-0

[Event "FIDE Women World Rapid 2024"]
[Site "New York"]
[Date "2024.12.27"]
[Round "7.20"]
[White "Sultanbek, Zeinep"]
[Black "Zhukova, Natalia"]
[Result "1/2-1/2"]
[ECO "D41"]
[WhiteElo "2101"]
[BlackElo "2302"]
[Annotator "ChessBase"]
[PlyCount "45"]
[EventDate "2024.12.14"]
[EventType "swiss"]
[EventCountry "USA"]
[SourceTitle "playchess.com"]
[Source "ChessBase"]
[SourceQuality "1"]
[TimeControl "900+10"]

1. Nf3 {[%emt 0:00:01]} d5 {[%emt 0:00:02]} 2. g3 {[%emt 0:00:01]} c5 {[%emt 0:00:10]} 3. Bg2 {[%emt 0:00:01]} Nc6 {[%emt 0:00:10]} 4. d4 {[%emt 0:00:02]} e6 {[%emt 0:00:15]} 5. O-O {[%emt 0:00:03]} Nf6 {[%emt 0:00:02]} 6. c4 {[%emt 0:00:01]} Be7 {[%emt 0:00:06]} 7. Nc3 {[%emt 0:00:05]} O-O {[%emt 0:00:16]} 8. cxd5 {[%emt 0:00:04]} Nxd5 {[%emt 0:00:11]} 9. e4 {[%emt 0:00:09]} Ndb4 {[%emt 0:00:02]} 10. d5 {[%emt 0:00:13]} Nd4 {[%emt 0:00:16]} 11. Bf4 {[%emt 0:00:58]} exd5 {[%emt 0:00:33]} 12. Nxd4 {[%emt 0:00:12]} cxd4 {[%emt 0:00:01]} 13. Nxd5 {[%emt 0:00:02]} Nxd5 {[%emt 0:00:48]} 14. exd5 {[%emt 0:00:02]} Bf6 {[%emt 0:00:04]} 15. Re1 {[%emt 0:00:06]} Bf5 {[%emt 0:03:38]} 16. h4 {[%emt 0:00:19]} h6 {[%emt 0:04:41]} 17. Be5 {[%emt 0:00:43]} d3 {[%emt 0:00:02]} 18. Qd2 {[%emt 0:02:41]} Bh7 {[%emt 0:02:08]} 19. Bxf6 {[%emt 0:00:46]} Qxf6 {[%emt 0:00:02]} 20. Be4 {[%emt 0:00:01]} Qd4 {[%emt 0:01:37]} 21. Bxh7+ {[%emt 0:00:19]} Kxh7 {[%emt 0:00:01]} 22. Re3 {[%emt 0:00:01]} Qxd5 {[%emt 0:00:05]} 23. Qxd3+ {[%emt 0:00:06]} 1/2-1/2

[Event "FIDE Women World Rapid 2024"]
[Site "New York"]
[Date "2024.12.27"]
[Round "7.21"]
[White "Ouellet, Maili-Jade"]
[Black "Castillo Beitia, Ashley Alexandra"]
[Result "1-0"]
[ECO "D15"]
[WhiteElo "2386"]
[BlackElo "2009"]
[Annotator "ChessBase"]
[PlyCount "71"]
[EventDate "2024.12.14"]
[EventType "swiss"]
[EventCountry "USA"]
[SourceTitle "playchess.com"]
[Source "ChessBase"]
[SourceQuality "1"]
[TimeControl "900+10"]

1. d4 {[%emt 0:00:01]} d5 {[%emt 0:00:01]} 2. c4 {[%emt 0:00:02]} c6 {[%emt 0:00:01]} 3. Nc3 {[%emt 0:00:02]} Nf6 {[%emt 0:00:01]} 4. Nf3 {[%emt 0:00:01]} a6 {[%emt 0:00:02]} 5. e3 {[%emt 0:00:01]} b5 {[%emt 0:00:05]} 6. b3 {[%emt 0:00:05]} Bg4 {[%emt 0:00:17]} 7. Be2 {[%emt 0:00:06]} Nbd7 {[%emt 0:00:01]} 8. O-O {[%emt 0:00:08]} e6 {[%emt 0:00:14]} 9. Bb2 {[%emt 0:00:04]} Bd6 {[%emt 0:00:05]} 10. h3 {[%emt 0:00:21]} Bf5 {[%emt 0:01:03]} 11. Nh4 {[%emt 0:01:00]} O-O {[%emt 0:00:06]} 12. Rc1 {[%emt 0:01:58]} Qe7 {[%emt 0:01:01]} 13. Nxf5 {[%emt 0:00:39]} exf5 {[%emt 0:00:03]} 14. Bf3 {[%emt 0:00:11]} Qe6 {[%emt 0:02:20]} 15. Ne2 {[%emt 0:02:14]} Rfc8 {[%emt 0:00:56]} 16. Qd3 {[%emt 0:01:51]} bxc4 {[%emt 0:01:43]} 17. bxc4 {[%emt 0:00:01]} Nb6 {[%emt 0:00:37]} 18. cxd5 {[%emt 0:01:17]} cxd5 {[%emt 0:00:18]} 19. Ba3 {[%emt 0:00:42]} Nc4 {[%emt 0:01:12]} 20. Bxd6 {[%emt 0:00:03]} Qxd6 {[%emt 0:00:04]} 21. Qxf5 {[%emt 0:00:33]} g6 {[%emt 0:01:28]} 22. Qd3 {[%emt 0:00:14]} Ne4 {[%emt 0:01:24]} 23. Rxc4 {[%emt 0:00:17]} dxc4 {[%emt 0:00:07]} 24. Qxe4 {[%emt 0:00:03]} Qa3 {[%emt 0:01:08]} 25. h4 {[%emt 0:02:02]} c3 {[%emt 0:00:44]} 26. h5 {[%emt 0:00:08]} Rab8 {[%emt 0:00:19]} 27. h6 {[%emt 0:00:17]} c2 {[%emt 0:00:43]} 28. Nc1 {[%emt 0:01:20]} Qf8 {[%emt 0:00:07]} 29. Qf4 {[%emt 0:00:14]} Rb5 {[%emt 0:01:03]} 30. e4 {[%emt 0:00:39]} Qe7 {[%emt 0:00:07]} 31. e5 {[%emt 0:00:08]} Rb4 {[%emt 0:00:29]} 32. Bd5 {[%emt 0:00:05]} Rd8 {[%emt 0:00:11]} 33. Qe4 {[%emt 0:01:08]} Qd7 {[%emt 0:01:05]} 34. e6 {[%emt 0:00:27]} Qxd5 {[%emt 0:00:25]} 35. e7 {[%emt 0:00:02]} Rxd4 {[%emt 0:00:14]} 36. e8=Q+ {[%emt 0:00:11]} 1-0

[Event "FIDE Women World Rapid 2024"]
[Site "New York"]
[Date "2024.12.27"]
[Round "7.21"]
[White "Bodnaruk, Anastasia"]
[Black "Vantika Agrawal"]
[Result "1-0"]
[ECO "C02"]
[WhiteElo "2333"]
[BlackElo "2392"]
[Annotator "ChessBase"]
[PlyCount "81"]
[EventDate "2024.12.14"]
[EventType "swiss"]
[EventCountry "USA"]
[SourceTitle "playchess.com"]
[Source "ChessBase"]
[SourceQuality "1"]
[TimeControl "900+10"]

1. e4 {[%emt 0:00:01]} e6 {[%emt 0:00:09]} 2. d4 {[%emt 0:00:01]} d5 {[%emt 0:00:01]} 3. e5 {[%emt 0:00:01]} c5 {[%emt 0:00:02]} 4. c3 {[%emt 0:00:01]} Nc6 {[%emt 0:00:04]} 5. Nf3 {[%emt 0:00:02]} Bd7 {[%emt 0:00:05]} 6. Be2 {[%emt 0:00:17]} Nge7 {[%emt 0:00:07]} 7. Na3 {[%emt 0:00:42]} cxd4 {[%emt 0:00:09]} 8. cxd4 {[%emt 0:00:01]} Nf5 {[%emt 0:00:14]} 9. Nc2 {[%emt 0:00:11]} Be7 {[%emt 0:00:12]} 10. g3 {[%emt 0:01:10]} Rc8 {[%emt 0:04:09]} 11. h4 {[%emt 0:00:29]} O-O {[%emt 0:06:50]} 12. h5 {[%emt 0:03:10]} h6 {[%emt 0:00:55]} 13. Kf1 {[%emt 0:00:54]} a6 {[%emt 0:01:43]} 14. Kg2 {[%emt 0:00:26]} Na5 {[%emt 0:01:09]} 15. Nce1 {[%emt 0:02:13]} Bb5 {[%emt 0:01:03]} 16. Bxb5 {[%emt 0:02:01]} axb5 {[%emt 0:00:02]} 17. Nd3 {[%emt 0:00:01]} f6 {[%emt 0:00:32]} 18. Nf4 {[%emt 0:01:38]} Rc6 {[%emt 0:00:30]} 19. Ng6 {[%emt 0:00:37]} Re8 {[%emt 0:00:11]} 20. g4 {[%emt 0:00:16]} fxe5 {[%emt 0:00:09]} 21. gxf5 {[%emt 0:00:28]} e4 {[%emt 0:00:09]} 22. Nfe5 {[%emt 0:00:04]} Ra6 {[%emt 0:00:06]} 23. Qg4 {[%emt 0:00:50]} exf5 {[%emt 0:00:08]} 24. Qxf5 {[%emt 0:00:05]} Rf6 {[%emt 0:00:02]} 25. Qg4 {[%emt 0:00:21]} Kh7 {[%emt 0:00:21]} 26. b3 {[%emt 0:00:30]} Nc6 {[%emt 0:00:09]} 27. Be3 {[%emt 0:00:10]} Nxe5 {[%emt 0:00:16]} 28. dxe5 {[%emt 0:00:29]} Rf3 {[%emt 0:00:02]} 29. Rad1 {[%emt 0:00:16]} Bb4 {[%emt 0:00:11]} 30. Nh4 {[%emt 0:00:23]} Rff8 {[%emt 0:00:13]} 31. Qg6+ {[%emt 0:00:59]} Kh8 {[%emt 0:00:03]} 32. Bxh6 {[%emt 0:00:15]} gxh6 {[%emt 0:00:21]} 33. Qxh6+ {[%emt 0:00:00]} Kg8 {[%emt 0:00:00]} 34. Rh3 {[%emt 0:00:27]} Kf7 {[%emt 0:00:16]} 35. Nf5 {[%emt 0:00:31]} Rg8+ {[%emt 0:00:14]} 36. Rg3 {[%emt 0:00:29]} Rxg3+ {[%emt 0:00:11]} 37. fxg3 {[%emt 0:00:00]} Rxe5 {[%emt 0:00:10]} 38. Qg6+ {[%emt 0:00:13]} Kf8 {[%emt 0:00:08]} 39. Qg7+ {[%emt 0:00:00]} Ke8 {[%emt 0:00:06]} 40. Qxe5+ {[%emt 0:00:02]} Kf7 {[%emt 0:00:14]} 41. Rf1 {[%emt 0:00:01]} 1-0

[Event "FIDE Women World Rapid 2024"]
[Site "New York"]
[Date "2024.12.27"]
[Round "7.22"]
[White "Song, Yuxin"]
[Black "Nurman, Alua"]
[Result "1/2-1/2"]
[ECO "B20"]
[WhiteElo "2384"]
[BlackElo "2330"]
[Annotator "ChessBase"]
[PlyCount "63"]
[EventDate "2024.12.14"]
[EventType "swiss"]
[EventCountry "USA"]
[SourceTitle "playchess.com"]
[Source "ChessBase"]
[SourceQuality "1"]
[TimeControl "900+10"]

1. e4 {[%emt 0:00:01]} c5 {[%emt 0:00:01]} 2. Ne2 {[%emt 0:00:01]} d6 {[%emt 0:00:03]} 3. g3 {[%emt 0:00:01]} Nc6 {[%emt 0:00:03]} 4. Bg2 {[%emt 0:00:01]} g6 {[%emt 0:00:02]} 5. c3 {[%emt 0:00:01]} Bg7 {[%emt 0:00:03]} 6. d4 {[%emt 0:00:02]} cxd4 {[%emt 0:00:54]} 7. cxd4 {[%emt 0:00:01]} Nf6 {[%emt 0:00:51]} 8. O-O {[%emt 0:00:08]} O-O {[%emt 0:00:02]} 9. Nbc3 {[%emt 0:00:01]} Bg4 {[%emt 0:00:06]} 10. Be3 {[%emt 0:00:16]} e5 {[%emt 0:00:51]} 11. d5 {[%emt 0:00:21]} Nd4 {[%emt 0:00:08]} 12. f3 {[%emt 0:00:25]} Nxe2+ {[%emt 0:00:04]} 13. Qxe2 {[%emt 0:00:01]} Bd7 {[%emt 0:00:02]} 14. a4 {[%emt 0:00:42]} Nh5 {[%emt 0:00:59]} 15. Nb5 {[%emt 0:00:29]} f5 {[%emt 0:00:07]} 16. exf5 {[%emt 0:00:50]} gxf5 {[%emt 0:00:04]} 17. Nxd6 {[%emt 0:00:12]} f4 {[%emt 0:00:12]} 18. Bf2 {[%emt 0:00:02]} fxg3 {[%emt 0:00:04]} 19. hxg3 {[%emt 0:00:02]} Nxg3 {[%emt 0:00:05]} 20. Bxg3 {[%emt 0:00:25]} Qb6+ {[%emt 0:00:01]} 21. Qf2 {[%emt 0:03:06]} Qxd6 {[%emt 0:00:01]} 22. f4 {[%emt 0:01:15]} Qg6 {[%emt 0:02:01]} 23. Ra3 {[%emt 0:00:24]} Kh8 {[%emt 0:04:05]} 24. Bh2 {[%emt 0:01:02]} Qh6 {[%emt 0:00:34]} 25. Qe3 {[%emt 0:00:50]} exf4 {[%emt 0:00:29]} 26. Rxf4 {[%emt 0:01:17]} Rfe8 {[%emt 0:01:12]} 27. Re4 {[%emt 0:00:02]} Qg6 {[%emt 0:00:06]} 28. Be5 {[%emt 0:00:25]} Rac8 {[%emt 0:02:18]} 29. Bxg7+ {[%emt 0:00:09]} Qxg7 {[%emt 0:00:02]} 30. Rxe8+ {[%emt 0:00:11]} Rxe8 {[%emt 0:00:06]} 31. Qc3 {[%emt 0:00:44]} Re2 {[%emt 0:00:25]} 32. Qxg7+ {[%emt 0:00:24]} 1/2-1/2

[Event "FIDE Women World Rapid 2024"]
[Site "New York"]
[Date "2024.12.27"]
[Round "7.22"]
[White "Munkhzul, Davaakhuu"]
[Black "Belenkaya, Dina"]
[Result "0-1"]
[ECO "B11"]
[WhiteElo "2138"]
[BlackElo "2155"]
[Annotator "ChessBase"]
[PlyCount "98"]
[EventDate "2024.12.14"]
[EventType "swiss"]
[EventCountry "USA"]
[SourceTitle "playchess.com"]
[Source "ChessBase"]
[SourceQuality "1"]
[TimeControl "900+10"]

1. e4 {[%emt 0:00:01]} c6 {[%emt 0:00:00]} 2. Nf3 {[%emt 0:00:05]} d5 {[%emt 0:00:01]} 3. Nc3 {[%emt 0:00:01]} dxe4 {[%emt 0:00:03]} 4. Nxe4 {[%emt 0:00:01]} Nf6 {[%emt 0:00:02]} 5. Ng3 {[%emt 0:00:05]} h5 {[%emt 0:00:02]} 6. Bc4 {[%emt 0:00:32]} h4 {[%emt 0:00:13]} 7. Ne2 {[%emt 0:00:23]} h3 {[%emt 0:00:20]} 8. g3 {[%emt 0:00:26]} Nbd7 {[%emt 0:00:42]} 9. d4 {[%emt 0:00:09]} Nb6 {[%emt 0:00:07]} 10. Bb3 {[%emt 0:00:10]} Bf5 {[%emt 0:00:18]} 11. Bg5 {[%emt 0:01:57]} e6 {[%emt 0:00:06]} 12. Ne5 {[%emt 0:01:50]} Be7 {[%emt 0:00:12]} 13. f3 {[%emt 0:00:29]} Nfd5 {[%emt 0:00:27]} 14. Bxe7 {[%emt 0:00:21]} Qxe7 {[%emt 0:00:04]} 15. Qd2 {[%emt 0:00:10]} f6 {[%emt 0:02:01]} 16. Nd3 {[%emt 0:00:22]} g5 {[%emt 0:00:18]} 17. Nc5 {[%emt 0:01:59]} O-O-O {[%emt 0:00:57]} 18. a4 {[%emt 0:00:13]} Nd7 {[%emt 0:00:30]} 19. Nxd7 {[%emt 0:00:50]} Rxd7 {[%emt 0:00:04]} 20. O-O-O {[%emt 0:01:13]} Rhd8 {[%emt 0:01:30]} 21. g4 {[%emt 0:01:24]} Bg6 {[%emt 0:00:05]} 22. Rhe1 {[%emt 0:00:06]} e5 {[%emt 0:02:51]} 23. dxe5 {[%emt 0:02:32]} Nf4 {[%emt 0:01:57]} 24. Qe3 {[%emt 0:00:06]} Ng2 {[%emt 0:01:44]} 25. Qxa7 {[%emt 0:00:16]} Nxe1 {[%emt 0:00:15]} 26. Rxe1 {[%emt 0:00:28]} Qxe5 {[%emt 0:00:39]} 27. a5 {[%emt 0:00:29]} Kc7 {[%emt 0:02:58]} 28. Qb6+ {[%emt 0:01:05]} Kb8 {[%emt 0:00:08]} 29. Ba4 {[%emt 0:00:06]} Qc7 {[%emt 0:00:14]} 30. Qb4 {[%emt 0:00:09]} Qd6 {[%emt 0:00:18]} 31. Qxd6+ {[%emt 0:00:53]} Rxd6 {[%emt 0:00:01]} 32. c3 {[%emt 0:00:57]} Re6 {[%emt 0:00:14]} 33. Rd1 {[%emt 0:00:04]} Rxd1+ {[%emt 0:00:16]} 34. Kxd1 {[%emt 0:00:04]} Re3 {[%emt 0:00:14]} 35. Ng1 {[%emt 0:00:05]} Kc7 {[%emt 0:00:31]} 36. Kd2 {[%emt 0:00:08]} Re5 {[%emt 0:00:01]} 37. b4 {[%emt 0:00:13]} Rd5+ {[%emt 0:00:02]} 38. Ke2 {[%emt 0:00:04]} Bd3+ {[%emt 0:00:14]} 39. Kf2 {[%emt 0:00:07]} Bc4 {[%emt 0:00:02]} 40. Nxh3 {[%emt 0:00:52]} Rd3 {[%emt 0:00:01]} 41. Ng1 {[%emt 0:00:07]} Rxc3 {[%emt 0:00:03]} 42. Kg3 {[%emt 0:00:20]} Bb3 {[%emt 0:00:19]} 43. Bxb3 {[%emt 0:00:02]} Rxb3 {[%emt 0:00:01]} 44. h4 {[%emt 0:00:10]} gxh4+ {[%emt 0:00:01]} 45. Kxh4 {[%emt 0:00:01]} Rxb4 {[%emt 0:00:01]} 46. Kh5 {[%emt 0:00:08]} Kd6 {[%emt 0:00:02]} 47. Kg6 {[%emt 0:00:09]} Ke6 {[%emt 0:00:01]} 48. Ne2 {[%emt 0:00:10]} c5 {[%emt 0:00:08]} 49. f4 {[%emt 0:00:07]} Re4 {[%emt 0:00:03]} 0-1